fUSD/lending_fUSD_20240624
["ID","MTS","AMOUNT","RATE_DAILY","PERIOD"]
[330257528,1719213060227,-1281.5,0.00019452,4]
[330257529,1719213060239,-1812.03,0.00019452,4]
[330257530,1719213060249,-1253.12,0.00019452,4]
[330257531,1719213060259,-500.0,0.00019452,4]
[330257532,1719213060268,-500.0,0.00019452,4]
[330257533,1719213060279,-4447.64,0.00019452,4]
[330257534,1719213060288,-500.0,0.00019452,4]
[330257535,1719213060297,-508.98962948,0.00019452,4]
[330257536,1719213060307,-7294.57,0.00019452,4]
[330257537,1719213060316,-500.0,0.00019452,4]
[330257538,1719213060326,-500.0,0.00019452,4]
[330257539,1719213060335,-500.0,0.00019452,4]
[330257540,1719213060345,-2365.75,0.00019452,4]
[330257541,1719213060355,-500.0,0.00019452,4]
[330257542,1719213060364,-500.0,0.00019452,4]
[330257543,1719213060374,-151.0,0.00019452,2]
[330257544,1719213060384,-504.31403597,0.00019452,4]
[330257545,1719213060393,-151.0,0.00019452,2]
[330257546,1719213060402,-1398.85,0.00019452,4]
[330257547,1719213060412,-151.0,0.00019452,2]
[330257548,1719213060421,-151.0,0.00019452,2]
[330257549,1719213060431,-500.0,0.00019452,4]
[330257550,1719213060440,-500.0,0.00019452,4]
[330257551,1719213060450,-881.07,0.00019452,4]
[330257552,1719213060459,-151.0,0.00019452,2]
[330257553,1719213060468,-151.0,0.00019452,2]
[330257554,1719213060478,-151.0,0.00019452,2]
[330257555,1719213060487,-151.0,0.00019452,2]
[330257556,1719213060497,-4063.57,0.00019452,4]
[330257557,1719213060508,-151.0,0.00019452,2]
[330257558,1719213060517,-151.0,0.00019452,2]
[330257559,1719213060526,-151.0,0.00019452,2]
[330257560,1719213060536,-151.0,0.00019452,2]
[330257561,1719213060546,-500.0,0.00019452,4]
[330257562,1719213060555,-950.23,0.00019452,4]
[330257563,1719213060565,-500.0,0.00019452,4]
[330257564,1719213060574,-576.83137702,0.00019452,4]
[330257565,1719213060584,-1891.54,0.00019452,4]
[330257566,1719213060593,-500.0,0.00019452,4]
[330257567,1719213060602,-2238.36,0.00019452,4]
[330257568,1719213060612,-500.0,0.00019452,4]
[330257569,1719213060621,-7567.46,0.00019452,4]
[330257570,1719213060631,-500.0,0.00019452,4]
[330257571,1719213060641,-500.0,0.00019452,4]
[330257572,1719213060650,-500.0,0.00019452,4]
[330257573,1719213060659,-3824.54,0.00019452,4]
[330257574,1719213060669,-500.0,0.00019452,4]
[330257575,1719213060678,-500.0,0.00019452,4]
[330257576,1719213060687,-5019.52,0.00019452,4]
[330257577,1719213060696,-500.0,0.00019452,4]
[330257578,1719213060706,-500.0,0.00019452,4]
[330257579,1719213060715,-500.0,0.00019452,4]
[330257580,1719213060725,-574.04973278,0.00019452,4]
[330257581,1719213060735,-3531.69,0.00019452,4]
[330257582,1719213060744,-500.0,0.00019452,4]
[330257583,1719213060759,-500.0,0.00019452,4]
[330257584,1719213060768,-500.0,0.00019452,4]
[330257585,1719213060777,-500.0,0.00019452,4]
[330257586,1719213060785,-1762.83,0.00019452,4]
[330257587,1719213060794,-4311.36,0.00019452,4]
[330257588,1719213060804,-500.0,0.00019452,4]
[330257589,1719213060813,-500.0,0.00019452,4]
[330257590,1719213060824,-5411.29,0.00019452,4]
[330257591,1719213060833,-706.81,0.00019452,4]
[330257592,1719213060843,-500.0,0.00019452,4]
[330257593,1719213060853,-500.0,0.00019452,4]
[330257594,1719213060863,-274.630681,0.00019452,2]
[330257595,1719213060872,-500.0,0.00019452,4]
[330257596,1719213060882,-500.0,0.00019452,4]
[330257597,1719213060898,-274.630681,0.00019452,2]
[330257598,1719213060918,-274.630681,0.00019452,2]
[330257599,1719213060934,-500.0,0.00019452,4]
[330257600,1719213060944,-274.630681,0.00019452,2]
[330257601,1719213060954,-1614.29,0.00019452,4]
[330257602,1719213060965,-500.0,0.00019452,4]
[330257603,1719213060975,-500.0,0.00019452,4]
[330257604,1719213060984,-500.0,0.00019452,4]
[330257605,1719213060993,-274.630681,0.00019452,2]
[330257606,1719213061008,-274.630681,0.00019452,2]
[330257607,1719213061017,-274.630681,0.00019452,2]
[330257608,1719213061026,-500.0,0.00019452,4]
[330257609,1719213061034,-500.0,0.00019452,4]
[330257610,1719213061043,-274.630681,0.00019452,2]
[330257611,1719213061052,-500.0,0.00019452,4]
[330257612,1719213061061,-896.77,0.00019452,4]
[330257613,1719213061070,-500.0,0.00019452,4]
[330257614,1719213061080,-500.0,0.00019452,4]
[330257615,1719213061089,-500.0,0.00019452,4]
[330257616,1719213061099,-500.0,0.00019452,4]
[330257617,1719213061109,-500.0,0.00019452,4]
[330257618,1719213061120,-500.0,0.00019452,4]
[330257619,1719213061129,-3505.3,0.00019452,4]
[330257620,1719213061139,-653.74,0.00019452,4]
[330257621,1719213061148,-9360.69,0.00019452,4]
[330257622,1719213061158,-500.0,0.00019452,4]
[330257623,1719213061167,-500.0,0.00019452,4]
[330257624,1719213061177,-988.38,0.00019452,4]
[330257625,1719213061189,-500.0,0.00019452,4]
[330257626,1719213061201,-199.269397,0.00019452,2]
[330257627,1719213061210,-500.0,0.00019452,4]
[330257628,1719213061220,-500.0,0.00019452,4]
[330257629,1719213061229,-500.0,0.00019452,4]
[330257630,1719213061241,-525.33,0.00019452,4]
[330257631,1719213061251,-319.779715,0.00019452,2]
[330257632,1719213061260,-557.29,0.00019452,4]
[330257633,1719213061270,-319.779715,0.00019452,2]
[330257634,1719213061280,-500.0,0.00019452,4]
[330257635,1719213061290,-319.779715,0.00019452,2]
[330257636,1719213061299,-319.779715,0.00019452,2]
[330257637,1719213061308,-403.11367186,0.00019452,4]
[330257638,1719213061318,-500.0,0.00019452,4]
[330257639,1719213061327,-500.0,0.00019452,4]
[330257640,1719213061335,-319.779715,0.00019452,2]
[330257641,1719213061344,-4563.318853,0.00019452,2]
[330257642,1719213061353,-4563.318853,0.00019452,2]
[330257643,1719213061363,-888.56,0.00019452,4]
[330257644,1719213061372,-500.0,0.00019452,4]
[330257645,1719213061382,-4563.318853,0.00019452,2]
[330257646,1719213061390,-4563.318853,0.00019452,2]
[330257647,1719213061400,-319.779715,0.00019452,2]
[330257648,1719213061409,-319.779715,0.00019452,2]
[330257649,1719213061418,-319.779715,0.00019452,2]
[330257650,1719213061427,-4548.9,0.00019452,4]
[330257651,1719213061437,-5117.81,0.00019452,4]
[330257652,1719213061447,-500.0,0.00019452,4]
[330257653,1719213061457,-151.0,0.00019452,2]
[330257654,1719213061467,-151.0,0.00019452,2]
[330257655,1719213061476,-3483.25,0.00019452,4]
[330257656,1719213061486,-500.0,0.00019452,4]
[330257657,1719213061495,-151.0,0.00019452,2]
[330257658,1719213061508,-500.0,0.00019452,4]
[330257659,1719213061518,-151.0,0.00019452,2]
[330257660,1719213061528,-4563.318853,0.00019452,2]
[330257661,1719213061537,-500.0,0.00019452,4]
[330257662,1719213061547,-4563.318853,0.00019452,2]
[330257663,1719213061556,-4563.318853,0.00019452,2]
[330257664,1719213061565,-4563.318853,0.00019452,2]
[330257665,1719213061574,-500.0,0.00019452,4]
[330257666,1719213061584,-4825.12,0.00019452,4]
[330257667,1719213061593,-500.0,0.00019452,4]
[330257668,1719213061602,-688.22,0.00019452,4]
[330257669,1719213061611,-151.0,0.00019452,2]
[330257670,1719213061620,-196.937667,0.00019452,2]
[330257671,1719213061630,-500.0,0.00019452,4]
[330257672,1719213061639,-500.0,0.00019452,4]
[330257673,1719213061651,-744.11,0.00019452,4]
[330257674,1719213061660,-500.0,0.00019452,4]
[330257675,1719213061670,-500.0,0.00019452,4]
[330257676,1719213061679,-212.222705,0.00019452,2]
[330257677,1719213061688,-502.15430233,0.00019452,4]
[330257678,1719213061697,-500.0,0.00019452,4]
[330257679,1719213061706,-846.79,0.00019452,4]
[330257680,1719213061716,-151.0,0.00019452,2]
[330257681,1719213061725,-500.0,0.00019452,4]
[330257682,1719213061735,-186.612247,0.00019452,2]
[330257683,1719213061744,-500.0,0.00019452,4]
[330257684,1719213061754,-1582.67,0.00019452,4]
[330257685,1719213061764,-500.0,0.00019452,4]
[330257686,1719213061774,-500.0,0.00019452,4]
[330257687,1719213061783,-500.0,0.00019452,4]
[330257688,1719213061793,-4953.12,0.00019452,4]
[330257689,1719213061802,-501.84426238,0.00019452,4]
[330257690,1719213061812,-500.0,0.00019452,4]
[330257691,1719213061821,-500.0,0.00019452,4]
[330257692,1719213061831,-500.0,0.00019452,4]
[330257693,1719213061840,-500.0,0.00019452,4]
[330257694,1719213061850,-500.0,0.00019452,4]
[330257695,1719213061859,-415.86568,0.00019452,2]
[330257696,1719213061868,-3254.46,0.00019452,4]
[330257697,1719213061877,-507.4058689,0.00019452,4]
[330257698,1719213061886,-415.86568,0.00019452,2]
[330257699,1719213061896,-415.86568,0.00019452,2]
[330257700,1719213061905,-500.0,0.00019452,4]
[330257701,1719213061914,-415.86568,0.00019452,2]
[330257702,1719213061923,-500.0,0.00019452,4]
[330257703,1719213061933,-500.0,0.00019452,4]
[330257704,1719213061943,-500.0,0.00019452,4]
[330257705,1719213061953,-500.0,0.00019452,4]
[330257706,1719213061962,-4955.22,0.00019452,4]
[330257707,1719213061972,-415.86568,0.00019452,2]
[330257708,1719213061981,-415.86568,0.00019452,2]
[330257709,1719213061990,-415.86568,0.00019452,2]
[330257710,1719213062000,-415.86568,0.00019452,2]
[330257711,1719213062010,-535.2,0.00019452,2]
[330257712,1719213062019,-500.24481904,0.00019452,4]
[330257713,1719213062029,-569.77,0.00019452,4]
[330257714,1719213062037,-500.0,0.00019452,4]
[330257715,1719213062047,-500.0,0.00019452,4]
[330257716,1719213062056,-500.0,0.00019452,4]
[330257717,1719213062066,-500.0,0.00019452,4]
[330257718,1719213062076,-2284.76,0.00019452,4]
[330257719,1719213062086,-500.0,0.00019452,4]
[330257720,1719213062095,-4132.71,0.00019452,4]
[330257721,1719213062105,-500.0,0.00019452,4]
[330257722,1719213062114,-151.0,0.00019452,2]
[330257723,1719213062124,-151.0,0.00019452,2]
[330257724,1719213062134,-151.0,0.00019452,2]
[330257725,1719213062143,-806.07,0.00019452,4]
[330257726,1719213062153,-597.4,0.00019452,4]
[330257727,1719213062162,-192.201949,0.00019452,2]
[330257728,1719213062172,-500.0,0.00019452,4]
[330257729,1719213062182,-500.0,0.00019452,4]
[330257730,1719213062196,-500.0,0.00019452,4]
[330257731,1719213062206,-1022.66,0.00019452,4]
[330257732,1719213062216,-1420.51,0.00019452,4]
[330257733,1719213062226,-500.0,0.00019452,4]
[330257734,1719213062237,-6039.51,0.00019452,4]
[330257735,1719213062246,-500.0,0.00019452,4]
[330257736,1719213062257,-3387.76,0.00019452,4]
[330257737,1719213062268,-500.0,0.00019452,4]
[330257738,1719213062278,-4112.73,0.00019452,4]
[330257739,1719213062287,-500.0,0.00019452,4]
[330257740,1719213062296,-500.0,0.00019452,4]
[330257741,1719213062306,-500.0,0.00019452,2]
[330257742,1719213062315,-500.0,0.00019452,4]
[330257743,1719213062324,-3426.59,0.00019452,4]
[330257744,1719213062333,-4471.77,0.00019452,4]
[330257745,1719213062343,-500.0,0.00019452,4]
[330257746,1719213062352,-383.45011862,0.00019452,4]
[330257747,1719213062362,-500.0,0.00019452,4]
[330257748,1719213062371,-2758.49,0.00019452,4]
[330257749,1719213062380,-500.0,0.00019452,4]
[330257750,1719213062390,-2479.19,0.00019452,4]
[330257751,1719213062399,-4681.5,0.00019499,4]
[330257752,1719213062408,-4205.0,0.000195,2]
[330257753,1719213062417,-154.8784338,0.00019516,2]
[330257754,1719213062427,-348.83,0.00019592,2]
[330257755,1719213062436,-1000.0,0.00019623,2]
[330257756,1719213062445,-189.32465771,0.00019626,2]
[330257757,1719213062455,-1006.26015606,0.00019626,2]
[330257758,1719213062464,-1000.0,0.00019699,2]
[330257759,1719213062474,-2048.28,0.00019699,4]
[330257760,1719213062483,-74106.33857419,0.000197,2]
[330257761,1719213062492,-151.0,0.000197,2]
[330257762,1719213062501,-151.0,0.000197,2]
[330257763,1719213062510,-151.0,0.000197,2]
[330257764,1719213062519,-219.378002,0.000197,2]
[330257765,1719213062528,-151.0,0.000197,2]
[330257766,1719213062537,-151.0,0.000197,2]
[330257767,1719213062546,-669.125865,0.000197,2]
[330257768,1719213062555,-669.125865,0.000197,2]
[330257769,1719213062564,-151.0,0.000197,2]
[330257770,1719213062574,-151.0,0.000197,2]
[330257771,1719213062585,-151.0,0.000197,2]
[330257772,1719213062594,-2048.28,0.00019725,4]
[330257773,1719213062603,-2048.28,0.00019725,4]
[330257774,1719213062613,-2048.28,0.00019725,4]
[330257775,1719213062622,-2048.28,0.00019725,4]
[330257776,1719213062631,-2048.28,0.00019725,4]
[330257777,1719213062640,-2048.28,0.00019725,4]
[330257778,1719213062650,-2048.48059976,0.00019725,4]
[330257779,1719213062659,-4681.5,0.00019725,4]
[330257780,1719213062668,-4681.5,0.00019725,4]
[330257781,1719213062677,-4681.5,0.00019725,4]
[330257782,1719213062686,-151.0,0.00019725,2]
[330257783,1719213062695,-151.0,0.00019725,2]
[330257784,1719213062704,-212.288535,0.00019725,2]
[330257785,1719213062713,-274.630681,0.00019725,2]
[330257786,1719213062722,-274.630681,0.00019725,2]
[330257787,1719213062731,-650428.46660413,0.00019726,7]
[330257788,1719213063533,-592.98,0.00019178,2]
[330257789,1719213063547,-334.400711,0.00019178,2]
[330257790,1719213063556,-334.400711,0.00019178,2]
[330257791,1719213063566,-334.400711,0.00019452,2]
[330257792,1719213063575,-334.400711,0.00019452,2]
[330257793,1719213063585,-237.81530933,0.00019726,7]
[330257794,1719213063597,-1063.03787112,0.00019726,7]
[330257795,1719213063608,-854.21064458,0.00019726,7]
[330257796,1719213063619,-311920.00000004,0.00019726,7]
[330257797,1719213063630,-73795.60197286,0.00019726,7]
[330257798,1719213063642,-359.73999999,0.00019726,7]
[330257799,1719213064094,-151.0,0.00019178,2]
[330257800,1719213064105,-151.0,0.00019178,2]
[330257801,1719213064115,-409.82512358,0.00019178,2]
[330257802,1719213064128,-90.17487642,0.00019178,2]
[330257803,1719213064138,-334.400711,0.00019452,2]
[330257804,1719213064148,-334.400711,0.00019452,2]
[330257805,1719213064158,-500.0,0.00019452,4]
[330257806,1719213064168,-151.0,0.00019452,2]
[330257807,1719213064191,-151.0,0.00019452,2]
[330257808,1719213064203,-328.10962573,0.00019726,7]
[330257809,1719213064379,-219.07,0.00018589,2]
[330257810,1719213064390,-151.0,0.00019452,2]
[330257811,1719213064400,-151.0,0.00019452,2]
[330257812,1719213064410,-219.07,0.00019519,2]
[330257813,1719213064420,-6359.86,0.00019726,7]
[330257814,1719213064432,-250.77233069,0.00019726,7]
[330257815,1719213064640,-508.08755087,0.00019726,7]
[330257816,1719213064941,-312110.0000002,0.00019726,7]
[330257817,1719213065546,-500.0,0.00019178,2]
[330257818,1719213065555,-334.400711,0.00019178,2]
[330257819,1719213065564,-28.58008344,0.00019178,2]
[330257820,1719213065707,-305.82062756,0.00019178,2]
[330257821,1719213065717,-500.0,0.00019178,2]
[330257822,1719213065727,-500.0,0.00019452,4]
[330257823,1719213065736,-334.400711,0.00019452,2]
[330257824,1719213065745,-334.400711,0.00019452,2]
[330257825,1719213065756,-334.400711,0.00019452,2]
[330257826,1719213065765,-305.45721797,0.00019626,2]
[330257827,1719213065774,-94294.02981124,0.00019726,7]
[330257828,1719213100875,183.3,0.00025337,120]
[330257830,1719213193412,200.0,0.00025913,120]
[330257831,1719213196032,1000.0,0.00025913,120]
[330257832,1719213200875,200.0,0.00025765,120]
[330257835,1719213304815,1988.0,0.00025765,120]
[330257836,1719213329568,179.56,0.00018849,30]
[330257838,1719213510284,1385.8,0.00025765,120]
[330257839,1719213560709,1000.0,0.00026,120]
[330257861,1719213601916,1019.0,0.00026,120]
[330257862,1719213621856,1000.0,0.00026,120]
[330257865,1719213745791,191.04,0.0002466,120]
[330257867,1719213920607,179.56,0.00018849,30]
[330257868,1719214091360,400.0,0.0002,30]
[330257891,1719214232117,-155.0,0.00014518,2]
[330257892,1719214232127,-155.0,0.00014879,2]
[330257893,1719214232136,-283.46778865,0.00014879,2]
[330257894,1719214232146,-218.44094675,0.00015725,2]
[330257896,1719214232158,-113.34905325,0.00015725,2]
[330257898,1719214232168,-200.0,0.00017555,2]
[330257899,1719214232178,-400.0,0.00017564,2]
[330257900,1719214232187,-142.61297675,0.0001768,2]
[330257901,1719214232198,-157.38702325,0.0001768,2]
[330257902,1719214232207,-150.0,0.0001768,2]
[330257903,1719214232217,-150.0,0.0001768,2]
[330257905,1719214232228,-235.80477175,0.00017681,2]
[330257906,1719214232239,-571.035,0.00017681,2]
[330257907,1719214232249,-715.22272661,0.00017681,2]
[330257908,1719214232261,-2858.1040834,0.00017681,2]
[330257909,1719214232272,-453.51,0.00017681,2]
[330257910,1719214232283,-4253.28735301,0.00017681,2]
[330257911,1719214232294,-5710.98748693,0.00017681,2]
[330257912,1719214232306,-2121.37763752,0.00017681,2]
[330257913,1719214232318,-466.63551131,0.00017681,2]
[330257914,1719214232329,-3172.60248449,0.00017681,2]
[330257915,1719214232341,-3331.43294498,0.00017681,2]
[330257916,1719214232350,-511.1264378,0.00017681,2]
[330257917,1719214232361,-2239.8735622,0.00017681,2]
[330257918,1719214232371,-701.28,0.00017793,2]
[330257919,1719214232380,-250.0,0.00017833,2]
[330257920,1719214232390,-191.04,0.00017934,2]
[330257921,1719214232399,-1817.03,0.00017934,2]
[330257922,1719214232408,-331.79,0.00017989,2]
[330257923,1719214232418,-600.0,0.00018003,2]
[330257924,1719214232427,-19999.99,0.00018065,2]
[330257925,1719214232437,-1102.54,0.00018065,2]
[330257926,1719214232446,-164.31,0.00018173,2]
[330257927,1719214232456,-8698.8,0.00018173,2]
[330257928,1719214232465,-499.99,0.00018448,2]
[330257929,1719214232475,-318.18194757,0.00018458,2]
[330257930,1719214232485,-516.42631505,0.00018458,2]
[330257931,1719214232494,-532.71676313,0.00018499,2]
[330257932,1719214232503,-207.51600459,0.00018552,2]
[330257933,1719214232513,-318.18194755,0.00018709,2]
[330257934,1719214232523,-516.42631496,0.00018709,2]
[330257935,1719214232532,-155.0,0.00018777,2]
[330257936,1719214232541,-12749.19467156,0.00018806,2]
[330257937,1719214232552,-339.34174154,0.00018811,2]
[330257938,1719214232562,-519.99643975,0.00018924,2]
[330257939,1719214232571,-305.13007106,0.0001896,2]
[330257940,1719214232581,-155.0,0.0001896,2]
[330257941,1719214232591,-318.18194755,0.00018961,2]
[330257942,1719214232605,-516.42631496,0.00018961,2]
[330257943,1719214232614,-24688.9497573,0.00018977,2]
[330257944,1719214232623,-163.15,0.0001899,2]
[330257945,1719214232633,-5915.0,0.0001899,2]
[330257946,1719214232643,-5915.0,0.0001899,2]
[330257947,1719214232653,-5915.0,0.0001899,2]
[330257949,1719214232662,-5915.0,0.0001899,2]
[330257951,1719214232671,-5915.0,0.0001899,2]
[330257953,1719214232682,-125946.38952746,0.00019,2]
[330257955,1719214232694,-46349.41248337,0.00019,2]
[330257957,1719214232704,-277.94262863,0.00019,2]
[330257959,1719214232716,-12475.02727996,0.00019,2]
[330257962,1719214232729,-367.67329241,0.00019,2]
[330257964,1719214232740,-575906.33233909,0.00019,2]
[330257971,1719214232795,-10764.96741103,0.00019,2]
[330257989,1719214238094,-2670.97434228,0.00019,2]
[330257991,1719214238107,-65631.8070978,0.00019,2]
[330257992,1719214238118,-91159.85522989,0.00019,2]
[330257995,1719214238812,-6637.10272302,0.00019,2]
[330258088,1719214240718,-155.0,0.0001871,2]
[330258089,1719214240730,-12749.19467156,0.00018806,2]
[330258090,1719214240741,-22120.70994385,0.00019,2]
[330258091,1719214240763,-3223.9677333,0.00019,2]
[330258092,1719214240776,-1217.89072931,0.00019,2]
[330258093,1719214240789,-702.72345189,0.00019,2]
[330258095,1719214241917,-674.77624646,0.00019,2]
[330258096,1719214241928,-2213.63470269,0.00019,2]
[330258167,1719214248267,-992.11530042,0.000189,2]
[330258168,1719214248276,-31956.52360498,0.00019,2]
[330258169,1719214248285,-775.95,0.00019,2]
[330258170,1719214248295,-183.3,0.00019003,2]
[330258171,1719214248304,-309.83,0.00019068,3]
[330258172,1719214248314,-15131.4173,0.00019078,2]
[330258173,1719214248324,-174.028,0.00019078,2]
[330258174,1719214248333,-543.96475932,0.00019151,2]
[330258175,1719214248343,-500.0,0.00019178,2]
[330258176,1719214248352,-590.87771198,0.00019178,2]
[330258177,1719214248362,-500.0,0.00019178,2]
[330258178,1719214248371,-500.0,0.00019178,2]
[330258179,1719214248380,-538.78413341,0.00019178,2]
[330258180,1719214248390,-500.0,0.00019178,2]
[330258181,1719214248399,-610.6,0.00019178,2]
[330258182,1719214248409,-500.0,0.00019178,2]
[330258183,1719214248418,-500.0,0.00019178,2]
[330258184,1719214248427,-500.0,0.00019178,2]
[330258185,1719214248439,-500.0,0.00019178,2]
[330258186,1719214248448,-500.0,0.00019178,2]
[330258187,1719214248457,-500.0,0.00019178,2]
[330258188,1719214248467,-500.0,0.00019178,2]
[330258189,1719214248476,-500.0,0.00019178,2]
[330258190,1719214248486,-616.63428521,0.00019178,2]
[330258191,1719214248495,-500.0,0.00019178,2]
[330258192,1719214248505,-500.0,0.00019178,2]
[330258193,1719214248518,-500.0,0.00019178,2]
[330258194,1719214248531,-500.0,0.00019178,2]
[330258195,1719214248541,-500.0,0.00019178,2]
[330258196,1719214248550,-511.30212442,0.00019178,2]
[330258197,1719214248559,-500.0,0.00019178,2]
[330258198,1719214248568,-500.0,0.00019178,2]
[330258199,1719214248578,-219.44151994,0.00019178,2]
[330258200,1719214248587,-500.0,0.00019178,2]
[330258201,1719214248599,-500.0,0.00019178,2]
[330258202,1719214248612,-500.0,0.00019178,2]
[330258203,1719214248622,-500.0,0.00019178,2]
[330258204,1719214248631,-500.0,0.00019178,2]
[330258205,1719214248644,-500.0,0.00019178,2]
[330258206,1719214248655,-500.0,0.00019178,2]
[330258207,1719214248665,-500.0,0.00019178,2]
[330258208,1719214248675,-500.0,0.00019178,2]
[330258209,1719214248686,-500.0,0.00019178,2]
[330258210,1719214248698,-500.0,0.00019178,2]
[330258211,1719214248708,-500.0,0.00019178,2]
[330258212,1719214248718,-528.79237272,0.00019178,2]
[330258213,1719214248729,-500.0,0.00019178,2]
[330258214,1719214248740,-500.0,0.00019178,2]
[330258215,1719214248750,-500.0,0.00019178,2]
[330258216,1719214248765,-500.0,0.00019178,2]
[330258217,1719214248775,-500.0,0.00019178,2]
[330258218,1719214248785,-500.0,0.00019178,2]
[330258219,1719214248796,-500.0,0.00019178,2]
[330258220,1719214248806,-500.0,0.00019178,2]
[330258221,1719214248816,-500.0,0.00019178,2]
[330258222,1719214248826,-500.0,0.00019178,2]
[330258223,1719214248837,-500.0,0.00019178,2]
[330258224,1719214248847,-547.64576185,0.00019178,2]
[330258225,1719214248857,-500.0,0.00019178,2]
[330258226,1719214249182,-500.0,0.00019178,2]
[330258227,1719214249193,-500.0,0.00019178,2]
[330258228,1719214249203,-500.0,0.00019178,2]
[330258229,1719214249213,-500.0,0.00019178,2]
[330258230,1719214249223,-500.0,0.00019178,2]
[330258231,1719214249233,-500.0,0.00019178,2]
[330258232,1719214249244,-500.0,0.00019178,2]
[330258233,1719214249255,-500.0,0.00019178,2]
[330258234,1719214249266,-500.0,0.00019178,2]
[330258235,1719214249276,-500.0,0.00019178,2]
[330258236,1719214249287,-500.0,0.00019178,2]
[330258237,1719214249297,-500.0,0.00019178,2]
[330258238,1719214249307,-535.25774067,0.00019178,2]
[330258239,1719214249317,-500.0,0.00019178,2]
[330258240,1719214249327,-500.0,0.00019178,2]
[330258241,1719214249337,-221.61,0.00019178,2]
[330258242,1719214249347,-500.0,0.00019178,2]
[330258243,1719214249357,-227.46228983,0.00019178,2]
[330258244,1719214249367,-500.0,0.00019178,2]
[330258245,1719214249377,-500.0,0.00019178,2]
[330258246,1719214249387,-500.0,0.00019178,2]
[330258247,1719214249397,-500.0,0.00019178,2]
[330258248,1719214249407,-500.0,0.00019178,2]
[330258249,1719214249417,-500.0,0.00019178,2]
[330258250,1719214249427,-416.00237636,0.00019178,2]
[330258251,1719214249437,-500.0,0.00019178,2]
[330258252,1719214249447,-500.0,0.00019178,2]
[330258253,1719214249457,-500.0,0.00019178,2]
[330258254,1719214249467,-500.0,0.00019178,2]
[330258255,1719214249478,-500.0,0.00019178,2]
[330258256,1719214249487,-525.97982039,0.00019178,2]
[330258257,1719214249498,-500.0,0.00019178,2]
[330258258,1719214249509,-500.0,0.00019178,2]
[330258259,1719214249518,-500.0,0.00019178,2]
[330258260,1719214249528,-500.0,0.00019178,2]
[330258261,1719214249537,-500.0,0.00019178,2]
[330258262,1719214249547,-500.0,0.00019178,2]
[330258263,1719214249558,-500.0,0.00019178,2]
[330258264,1719214249568,-443.26240581,0.00019178,2]
[330258265,1719214249579,-500.0,0.00019178,2]
[330258266,1719214249589,-500.0,0.00019178,2]
[330258267,1719214249601,-500.0,0.00019178,2]
[330258268,1719214249611,-500.0,0.00019178,2]
[330258269,1719214249621,-500.0,0.00019178,2]
[330258270,1719214249631,-500.0,0.00019178,2]
[330258271,1719214249644,-500.0,0.00019178,2]
[330258272,1719214249654,-500.0,0.00019178,2]
[330258273,1719214249667,-500.0,0.00019178,2]
[330258274,1719214249677,-500.0,0.00019178,2]
[330258275,1719214249689,-500.0,0.00019178,2]
[330258276,1719214249699,-500.0,0.00019178,2]
[330258277,1719214249708,-500.0,0.00019178,2]
[330258278,1719214249719,-500.0,0.00019178,2]